[Event "Titled Tuesday Blitz May 10 Early 2022"]
[White "Shimelkov, Vasiliy"]
[Black "Demin, Vladimir"]
[WhiteFideId "13701630"]
[BlackFideId "4167457"]
[WhiteElo "2073"]
[BlackElo "2455"]
[Result "1/2-1/2"]
[Round "06"]
[TimeControl "180+1"]
[Date "2022.05.11"]
[WhiteClock "0:01:16"]
[BlackClock "0:00:17"]

1. d4 {[%clk 0:03:00]}  Nf6 {[%clk 0:02:59]} 2. Nf3 {[%clk 0:03:00]}  d5 {[%clk 0:02:59]} 3. c4 {[%clk 0:03:00]}  e6 {[%clk 0:02:58]} 4. Nc3 {[%clk 0:03:00]}  c6 {[%clk 0:02:58]} 5. Bg5 {[%clk 0:03:00]}  h6 {[%clk 0:02:58]} 6. Bh4 {[%clk 0:02:59]}  g5 {[%clk 0:02:57]} 7. Bg3 {[%clk 0:02:59]}  Ne4 {[%clk 0:02:58]} 8. e3 {[%clk 0:02:56]}  Bb4 {[%clk 0:02:54]} 9. Qc2 {[%clk 0:02:54]}  Qa5 {[%clk 0:02:51]} 10. Rc1 {[%clk 0:02:53]}  Qxa2 {[%clk 0:02:47]} 11. Bd3 {[%clk 0:02:45]}  Bxc3+ {[%clk 0:02:45]} 12. bxc3 {[%clk 0:02:41]}  Qxc2 {[%clk 0:02:45]} 13. Rxc2 {[%clk 0:02:41]}  Nd7 {[%clk 0:02:28]} 14. Bxe4 {[%clk 0:02:36]}  dxe4 {[%clk 0:02:27]} 15. Nd2 {[%clk 0:02:36]}  f5 {[%clk 0:02:26]} 16. f3 {[%clk 0:02:36]}  exf3 {[%clk 0:02:23]} 17. gxf3 {[%clk 0:02:36]}  Kf7 {[%clk 0:02:15]} 18. h4 {[%clk 0:02:36]}  Rg8 {[%clk 0:02:08]} 19. hxg5 {[%clk 0:02:33]}  hxg5 {[%clk 0:02:09]} 20. Kf2 {[%clk 0:02:33]}  Nf6 {[%clk 0:02:04]} 21. Be5 {[%clk 0:02:30]}  Bd7 {[%clk 0:02:00]} 22. e4 {[%clk 0:02:28]}  Rh8 {[%clk 0:01:54]} 23. Rcc1 {[%clk 0:02:23]}  Kg6 {[%clk 0:01:43]} 24. c5 {[%clk 0:02:04]}  a5 {[%clk 0:01:33]} 25. Nc4 {[%clk 0:02:01]}  fxe4 {[%clk 0:00:48]} 26. Bxf6 {[%clk 0:01:56]}  Kxf6 {[%clk 0:00:49]} 27. fxe4 {[%clk 0:01:56]}  e5 {[%clk 0:00:38]} 28. Nxe5 {[%clk 0:01:52]}  Be6 {[%clk 0:00:36]} 29. Ke3 {[%clk 0:01:47]}  a4 {[%clk 0:00:30]} 30. Rcf1+ {[%clk 0:01:41]}  Kg7 {[%clk 0:00:30]} 31. Rhg1 {[%clk 0:01:42]}  Rh3+ {[%clk 0:00:26]} 32. Kd2 {[%clk 0:01:36]}  Rh2+ {[%clk 0:00:20]} 33. Kc1 {[%clk 0:01:28]}  a3 {[%clk 0:00:17]} 34. Rxg5+ {[%clk 0:01:26]}  Kh7 {[%clk 0:00:16]} 35. Kb1 {[%clk 0:01:17]}  Rb2+ {[%clk 0:00:15]} 36. Ka1 {[%clk 0:01:16]}  Ra2+ {[%clk 0:00:15]} 37. Kb1 {[%clk 0:01:16]}  Rb2+ {[%clk 0:00:16]} 38. Ka1 {[%clk 0:01:16]}  Ra2+ {[%clk 0:00:16]} 39. Kb1 {[%clk 0:01:16]}  Rb2+ {[%clk 0:00:17]} 1/2-1/2


[Site "https://www.chess.com"]

[Event "Titled Tuesday Blitz May 10 Early 2022"]
[White "Silvestre, Christian"]
[Black "Silva, Mariana Sofia T."]
[WhiteFideId "30956269"]
[BlackFideId "1911899"]
[WhiteElo "2364"]
[BlackElo "1825"]
[Result "1-0"]
[Round "06"]
[TimeControl "180+1"]
[Date "2022.05.11"]
[WhiteClock "0:00:15"]
[BlackClock "0:00:01"]

1. e4 {[%clk 0:03:00]}  c6 {[%clk 0:02:59]} 2. Nc3 {[%clk 0:02:55]}  d5 {[%clk 0:02:59]} 3. Nf3 {[%clk 0:02:56]}  Bg4 {[%clk 0:02:59]} 4. h3 {[%clk 0:02:56]}  Bxf3 {[%clk 0:02:59]} 5. Qxf3 {[%clk 0:02:57]}  e6 {[%clk 0:02:59]} 6. d3 {[%clk 0:02:57]}  Nd7 {[%clk 0:02:54]} 7. g3 {[%clk 0:02:57]}  Bc5 {[%clk 0:02:50]} 8. Bg2 {[%clk 0:02:56]}  Ne7 {[%clk 0:02:44]} 9. O-O {[%clk 0:02:56]}  O-O {[%clk 0:02:44]} 10. a3 {[%clk 0:02:49]}  Ng6 {[%clk 0:02:31]} 11. Qe2 {[%clk 0:02:48]}  a5 {[%clk 0:02:10]} 12. Bd2 {[%clk 0:02:43]}  Nde5 {[%clk 0:02:01]} 13. Kh2 {[%clk 0:02:37]}  d4 {[%clk 0:01:33]} 14. Nd1 {[%clk 0:02:32]}  Qc7 {[%clk 0:01:23]} 15. f4 {[%clk 0:02:20]}  Nd7 {[%clk 0:01:20]} 16. h4 {[%clk 0:02:20]}  Rfe8 {[%clk 0:01:17]} 17. h5 {[%clk 0:02:19]}  Ngf8 {[%clk 0:01:17]} 18. h6 {[%clk 0:02:18]}  g6 {[%clk 0:01:17]} 19. Nf2 {[%clk 0:02:17]}  f5 {[%clk 0:01:07]} 20. g4 {[%clk 0:02:05]}  Nf6 {[%clk 0:00:55]} 21. g5 {[%clk 0:01:40]}  N6d7 {[%clk 0:00:45]} 22. Rae1 {[%clk 0:01:33]}  Re7 {[%clk 0:00:35]} 23. Bh3 {[%clk 0:01:14]}  e5 {[%clk 0:00:25]} 24. b4 {[%clk 0:01:13]}  Ba7 {[%clk 0:00:23]} 25. exf5 {[%clk 0:01:10]}  gxf5 {[%clk 0:00:18]} 26. Bxf5 {[%clk 0:01:06]}  Rae8 {[%clk 0:00:18]} 27. Qg4 {[%clk 0:00:46]}  exf4 {[%clk 0:00:15]} 28. Ne4 {[%clk 0:00:45]}  f3+ {[%clk 0:00:14]} 29. Bf4 {[%clk 0:00:44]}  Qd8 {[%clk 0:00:12]} 30. Rxf3 {[%clk 0:00:43]}  Bb8 {[%clk 0:00:11]} 31. Ref1 {[%clk 0:00:42]}  Bxf4+ {[%clk 0:00:11]} 32. Rxf4 {[%clk 0:00:42]}  Ne5 {[%clk 0:00:11]} 33. Qh5 {[%clk 0:00:36]}  Kh8 {[%clk 0:00:09]} 34. Nf6 {[%clk 0:00:30]}  Nfg6 {[%clk 0:00:05]} 35. R4f2 {[%clk 0:00:21]}  Qd6 {[%clk 0:00:04]} 36. Kh1 {[%clk 0:00:19]}  Rf8 {[%clk 0:00:03]} 37. Be4 {[%clk 0:00:19]}  Nd7 {[%clk 0:00:01]} 38. Nxd7 {[%clk 0:00:17]}  Rxf2 {[%clk 0:00:01]} 39. Rxf2 {[%clk 0:00:16]}  Rxd7 {[%clk 0:00:01]} 40. Qf3 {[%clk 0:00:15]} 1-0


[Site "https://www.chess.com"]

[Event "Titled Tuesday Blitz May 10 Early 2022"]
[White "Simonovic, Miroslav"]
[Black "Lomaia, Diana"]
[WhiteFideId "919152"]
[BlackFideId "13612476"]
[WhiteElo "2043"]
[BlackElo "1744"]
[Result "1-0"]
[Round "06"]
[TimeControl "180+1"]
[Date "2022.05.11"]
[WhiteClock "0:01:07"]
[BlackClock "0:01:58"]

1. d4 {[%clk 0:03:00]}  d5 {[%clk 0:03:00]} 2. Bg5 {[%clk 0:03:01]}  h6 {[%clk 0:02:59]} 3. Bh4 {[%clk 0:03:01]}  c5 {[%clk 0:03:00]} 4. c3 {[%clk 0:03:00]}  Nc6 {[%clk 0:03:00]} 5. e3 {[%clk 0:02:59]}  Qc7 {[%clk 0:02:59]} 6. Bg3 {[%clk 0:02:56]}  Qb6 {[%clk 0:02:55]} 7. Qb3 {[%clk 0:02:55]}  c4 {[%clk 0:02:52]} 8. Qxb6 {[%clk 0:02:54]}  axb6 {[%clk 0:02:53]} 9. e4 {[%clk 0:02:50]}  dxe4 {[%clk 0:02:53]} 10. Bxc4 {[%clk 0:02:49]}  e6 {[%clk 0:02:49]} 11. Bc7 {[%clk 0:02:31]}  Nf6 {[%clk 0:02:36]} 12. Nd2 {[%clk 0:02:17]}  b5 {[%clk 0:02:16]} 13. Bxb5 {[%clk 0:02:10]}  Nd5 {[%clk 0:02:16]} 14. Bg3 {[%clk 0:02:00]}  f5 {[%clk 0:02:14]} 15. Ne2 {[%clk 0:01:42]}  f4 {[%clk 0:02:08]} 16. Nxf4 {[%clk 0:01:35]}  e3 {[%clk 0:02:06]} 17. Ne4 {[%clk 0:01:16]}  exf2+ {[%clk 0:02:02]} 18. Kxf2 {[%clk 0:01:17]}  Nxf4 {[%clk 0:01:57]} 19. Bxf4 {[%clk 0:01:18]}  g5 {[%clk 0:01:58]} 20. Be5 {[%clk 0:01:07]} 1-0


[Site "https://www.chess.com"]

[Event "Titled Tuesday Blitz May 10 Early 2022"]
[White "Sokolovsky, Yahli"]
[Black "Azarov, Sergei"]
[WhiteFideId "2820242"]
[BlackFideId "13501470"]
[WhiteElo "1770"]
[BlackElo "2494"]
[Result "1-0"]
[Round "06"]
[TimeControl "180+1"]
[Date "2022.05.10"]
[WhiteClock "0:00:03"]
[BlackClock "0:00:03"]

1. b3 {[%clk 0:03:00]}  e5 {[%clk 0:02:59]} 2. Bb2 {[%clk 0:03:00]}  Nc6 {[%clk 0:02:59]} 3. e3 {[%clk 0:02:59]}  Nf6 {[%clk 0:02:58]} 4. Nf3 {[%clk 0:02:59]}  Qe7 {[%clk 0:02:52]} 5. Be2 {[%clk 0:02:55]}  e4 {[%clk 0:02:48]} 6. Nd4 {[%clk 0:02:55]}  Nxd4 {[%clk 0:02:37]} 7. Bxd4 {[%clk 0:02:56]}  b6 {[%clk 0:02:32]} 8. c4 {[%clk 0:02:55]}  Bb7 {[%clk 0:02:32]} 9. Bb2 {[%clk 0:02:51]}  O-O-O {[%clk 0:02:30]} 10. Nc3 {[%clk 0:02:52]}  d5 {[%clk 0:02:29]} 11. cxd5 {[%clk 0:02:37]}  Nxd5 {[%clk 0:02:29]} 12. Nxd5 {[%clk 0:02:35]}  Rxd5 {[%clk 0:02:26]} 13. Qc2 {[%clk 0:02:15]}  Qg5 {[%clk 0:02:12]} 14. Qxe4 {[%clk 0:02:02]}  f5 {[%clk 0:01:52]} 15. Qe6+ {[%clk 0:01:51]}  Kb8 {[%clk 0:01:50]} 16. Bf3 {[%clk 0:01:41]}  Rd6 {[%clk 0:01:46]} 17. Qe5 {[%clk 0:01:27]}  Bxf3 {[%clk 0:01:23]} 18. gxf3 {[%clk 0:01:28]}  Qd8 {[%clk 0:01:12]} 19. O-O-O {[%clk 0:01:25]}  Rd5 {[%clk 0:01:11]} 20. Qg3 {[%clk 0:01:17]}  Rc5+ {[%clk 0:01:07]} 21. Kb1 {[%clk 0:01:03]}  Qd3+ {[%clk 0:01:00]} 22. Ka1 {[%clk 0:01:04]}  Rc2 {[%clk 0:00:52]} 23. Rc1 {[%clk 0:00:55]}  Bd6 {[%clk 0:00:29]} 24. Qxg7 {[%clk 0:00:55]}  Rxc1+ {[%clk 0:00:29]} 25. Rxc1 {[%clk 0:00:54]}  Rd8 {[%clk 0:00:29]} 26. Qc3 {[%clk 0:00:48]}  Qe2 {[%clk 0:00:28]} 27. Ba3 {[%clk 0:00:45]}  c5 {[%clk 0:00:20]} 28. f4 {[%clk 0:00:33]}  Qxf2 {[%clk 0:00:18]} 29. Bb2 {[%clk 0:00:31]}  Qxh2 {[%clk 0:00:15]} 30. Qf6 {[%clk 0:00:31]}  Kc7 {[%clk 0:00:15]} 31. d4 {[%clk 0:00:21]}  Rd7 {[%clk 0:00:10]} 32. dxc5 {[%clk 0:00:19]}  Bxc5 {[%clk 0:00:10]} 33. Qxf5 {[%clk 0:00:15]}  Qd2 {[%clk 0:00:08]} 34. Qe4 {[%clk 0:00:14]}  a5 {[%clk 0:00:06]} 35. Be5+ {[%clk 0:00:14]}  Kd8 {[%clk 0:00:05]} 36. Bf6+ {[%clk 0:00:08]}  Kc7 {[%clk 0:00:04]} 37. Be5+ {[%clk 0:00:06]}  Kd8 {[%clk 0:00:04]} 38. Rc2 {[%clk 0:00:04]}  Qxe3 {[%clk 0:00:03]} 39. Bf6+ {[%clk 0:00:03]}  Kc7 {[%clk 0:00:03]} 40. Qxe3 {[%clk 0:00:03]} 1-0


[Site "https://www.chess.com"]

[Event "Titled Tuesday Blitz May 10 Early 2022"]
[White "Starozhilov, Leonid"]
[Black "Juhasz, Agoston"]
[WhiteFideId "14106752"]
[BlackFideId "778346"]
[WhiteElo "2414"]
[BlackElo "2211"]
[Result "1-0"]
[Round "06"]
[TimeControl "180+1"]
[Date "2022.05.11"]
[WhiteClock "0:00:07"]
[BlackClock "0:00:03"]

1. e4 {[%clk 0:03:00]}  e6 {[%clk 0:02:59]} 2. d3 {[%clk 0:02:59]}  d5 {[%clk 0:03:00]} 3. Nd2 {[%clk 0:03:00]}  Nf6 {[%clk 0:03:00]} 4. Ngf3 {[%clk 0:03:00]}  Nc6 {[%clk 0:03:00]} 5. c3 {[%clk 0:02:59]}  e5 {[%clk 0:02:57]} 6. b4 {[%clk 0:02:56]}  Bd6 {[%clk 0:02:52]} 7. a3 {[%clk 0:02:55]}  O-O {[%clk 0:02:51]} 8. Bb2 {[%clk 0:02:55]}  Qe7 {[%clk 0:02:44]} 9. Be2 {[%clk 0:02:54]}  Rd8 {[%clk 0:02:44]} 10. Qc2 {[%clk 0:02:53]}  a5 {[%clk 0:02:38]} 11. O-O {[%clk 0:02:53]}  Bg4 {[%clk 0:02:32]} 12. h3 {[%clk 0:02:52]}  Bh5 {[%clk 0:02:31]} 13. Rfe1 {[%clk 0:02:53]}  b5 {[%clk 0:02:15]} 14. Nf1 {[%clk 0:02:41]}  Bxf3 {[%clk 0:01:58]} 15. Bxf3 {[%clk 0:02:40]}  d4 {[%clk 0:01:59]} 16. cxd4 {[%clk 0:02:33]}  axb4 {[%clk 0:01:33]} 17. Qxc6 {[%clk 0:02:23]}  bxa3 {[%clk 0:01:33]} 18. dxe5 {[%clk 0:02:23]}  Bxe5 {[%clk 0:01:22]} 19. Rxa3 {[%clk 0:02:05]}  Rxa3 {[%clk 0:01:19]} 20. Bxa3 {[%clk 0:02:04]}  Qxa3 {[%clk 0:01:16]} 21. Qxb5 {[%clk 0:02:04]}  Qc3 {[%clk 0:01:03]} 22. Rd1 {[%clk 0:01:52]}  c5 {[%clk 0:01:02]} 23. Ne3 {[%clk 0:01:38]}  Rb8 {[%clk 0:00:58]} 24. Qc6 {[%clk 0:01:25]}  Qb2 {[%clk 0:00:53]} 25. Nc4 {[%clk 0:01:21]}  Qd4 {[%clk 0:00:49]} 26. Nxe5 {[%clk 0:01:14]}  Qxe5 {[%clk 0:00:49]} 27. Rc1 {[%clk 0:01:15]}  Qf4 {[%clk 0:00:39]} 28. Qxc5 {[%clk 0:01:14]}  Nd7 {[%clk 0:00:37]} 29. Qc7 {[%clk 0:01:06]}  Qxc7 {[%clk 0:00:33]} 30. Rxc7 {[%clk 0:01:05]}  Ne5 {[%clk 0:00:34]} 31. d4 {[%clk 0:00:57]}  Nxf3+ {[%clk 0:00:31]} 32. gxf3 {[%clk 0:00:57]}  Kf8 {[%clk 0:00:32]} 33. d5 {[%clk 0:00:57]}  f6 {[%clk 0:00:29]} 34. Kg2 {[%clk 0:00:56]}  Rb6 {[%clk 0:00:28]} 35. f4 {[%clk 0:00:56]}  Rb3 {[%clk 0:00:27]} 36. f3 {[%clk 0:00:53]}  Rd3 {[%clk 0:00:27]} 37. Rd7 {[%clk 0:00:50]}  h5 {[%clk 0:00:27]} 38. h4 {[%clk 0:00:51]}  g6 {[%clk 0:00:27]} 39. Kg3 {[%clk 0:00:50]}  Rd1 {[%clk 0:00:25]} 40. e5 {[%clk 0:00:50]}  f5 {[%clk 0:00:19]} 41. e6 {[%clk 0:00:48]}  Ke8 {[%clk 0:00:19]} 42. d6 {[%clk 0:00:41]}  Re1 {[%clk 0:00:19]} 43. Re7+ {[%clk 0:00:40]}  Kd8 {[%clk 0:00:20]} 44. Kf2 {[%clk 0:00:40]}  Rd1 {[%clk 0:00:14]} 45. Rd7+ {[%clk 0:00:36]}  Ke8 {[%clk 0:00:15]} 46. Rg7 {[%clk 0:00:34]}  Rxd6 {[%clk 0:00:14]} 47. Rxg6 {[%clk 0:00:34]}  Ke7 {[%clk 0:00:15]} 48. Rh6 {[%clk 0:00:28]}  Rxe6 {[%clk 0:00:15]} 49. Rxh5 {[%clk 0:00:26]}  Rf6 {[%clk 0:00:15]} 50. Ke3 {[%clk 0:00:26]}  Kf7 {[%clk 0:00:15]} 51. Kd4 {[%clk 0:00:22]}  Ke6 {[%clk 0:00:14]} 52. Rg5 {[%clk 0:00:21]}  Rf7 {[%clk 0:00:14]} 53. Rg6+ {[%clk 0:00:20]}  Ke7 {[%clk 0:00:14]} 54. Ke5 {[%clk 0:00:20]}  Rh7 {[%clk 0:00:15]} 55. Kxf5 {[%clk 0:00:14]}  Rxh4 {[%clk 0:00:15]} 56. Rg7+ {[%clk 0:00:14]}  Kf8 {[%clk 0:00:15]} 57. Ra7 {[%clk 0:00:14]}  Rh6 {[%clk 0:00:14]} 58. Kg5 {[%clk 0:00:13]}  Rb6 {[%clk 0:00:11]} 59. f5 {[%clk 0:00:14]}  Rc6 {[%clk 0:00:08]} 60. f6 {[%clk 0:00:13]}  Rc1 {[%clk 0:00:06]} 61. Kf5 {[%clk 0:00:13]}  Rf1 {[%clk 0:00:03]} 62. f4 {[%clk 0:00:13]}  Rf2 {[%clk 0:00:03]} 63. Ra4 {[%clk 0:00:08]}  Re2 {[%clk 0:00:03]} 64. Kg4 {[%clk 0:00:07]}  Rg2+ {[%clk 0:00:03]} 65. Kf5 {[%clk 0:00:07]}  Rf2 {[%clk 0:00:04]} 66. Re4 {[%clk 0:00:07]}  Kf7 {[%clk 0:00:04]} 67. Re7+ {[%clk 0:00:07]}  Kf8 {[%clk 0:00:04]} 68. Ra7 {[%clk 0:00:08]}  Rf1 {[%clk 0:00:04]} 69. f7 {[%clk 0:00:08]}  Rb1 {[%clk 0:00:03]} 70. Kg5 {[%clk 0:00:07]}  Rg1+ {[%clk 0:00:03]} 71. Kf6 {[%clk 0:00:07]} 1-0


[Site "https://www.chess.com"]

[Event "Titled Tuesday Blitz May 10 Early 2022"]
[White "Steinberg, Nitzan"]
[Black "Nagy, Gabor"]
[WhiteFideId "2801795"]
[BlackFideId "737119"]
[WhiteElo "2471"]
[BlackElo "2569"]
[Result "1-0"]
[Round "06"]
[TimeControl "180+1"]
[Date "2022.05.10"]
[WhiteClock "0:01:04"]
[BlackClock "0:01:36"]

1. e4 {[%clk 0:03:00]}  c5 {[%clk 0:02:58]} 2. Nf3 {[%clk 0:03:01]}  d6 {[%clk 0:02:59]} 3. Bb5+ {[%clk 0:02:58]}  Bd7 {[%clk 0:02:57]} 4. a4 {[%clk 0:02:57]}  g6 {[%clk 0:02:56]} 5. O-O {[%clk 0:02:56]}  Bg7 {[%clk 0:02:56]} 6. Re1 {[%clk 0:02:54]}  Nf6 {[%clk 0:02:56]} 7. c3 {[%clk 0:02:50]}  O-O {[%clk 0:02:55]} 8. Bf1 {[%clk 0:02:49]}  Nc6 {[%clk 0:02:54]} 9. h3 {[%clk 0:02:49]}  Rc8 {[%clk 0:02:51]} 10. Na3 {[%clk 0:02:39]}  a6 {[%clk 0:02:49]} 11. d3 {[%clk 0:02:34]}  Ne8 {[%clk 0:02:37]} 12. Be3 {[%clk 0:02:23]}  Nc7 {[%clk 0:02:34]} 13. Nc4 {[%clk 0:02:19]}  b5 {[%clk 0:02:29]} 14. Nb6 {[%clk 0:02:17]}  Rb8 {[%clk 0:02:29]} 15. Nxd7 {[%clk 0:02:13]}  Qxd7 {[%clk 0:02:29]} 16. axb5 {[%clk 0:02:12]}  axb5 {[%clk 0:02:30]} 17. d4 {[%clk 0:02:12]}  b4 {[%clk 0:02:28]} 18. Qd2 {[%clk 0:01:57]}  bxc3 {[%clk 0:02:23]} 19. bxc3 {[%clk 0:01:57]}  cxd4 {[%clk 0:02:24]} 20. cxd4 {[%clk 0:01:58]}  Rfc8 {[%clk 0:02:24]} 21. Rec1 {[%clk 0:01:52]}  d5 {[%clk 0:02:10]} 22. e5 {[%clk 0:01:52]}  Ne6 {[%clk 0:02:09]} 23. h4 {[%clk 0:01:49]}  h5 {[%clk 0:02:06]} 24. g3 {[%clk 0:01:49]}  Ned8 {[%clk 0:02:05]} 25. Kg2 {[%clk 0:01:44]}  e6 {[%clk 0:02:01]} 26. Bg5 {[%clk 0:01:38]}  Ne7 {[%clk 0:01:59]} 27. Rxc8 {[%clk 0:01:23]}  Rxc8 {[%clk 0:01:58]} 28. Qb4 {[%clk 0:01:16]}  Ndc6 {[%clk 0:01:56]} 29. Qd6 {[%clk 0:01:12]}  Qb7 {[%clk 0:01:43]} 30. Ba6 {[%clk 0:01:10]}  Qb2 {[%clk 0:01:36]} 31. Bxc8 {[%clk 0:01:09]}  Qxa1 {[%clk 0:01:36]} 32. Bxe7 {[%clk 0:01:08]}  Nxd4 {[%clk 0:01:36]} 33. Qd8+ {[%clk 0:01:08]}  Kh7 {[%clk 0:01:36]} 34. Ng5+ {[%clk 0:01:07]}  Kh6 {[%clk 0:01:37]} 35. Nxf7+ {[%clk 0:01:06]}  Kh7 {[%clk 0:01:37]} 36. Ng5+ {[%clk 0:01:06]}  Kh6 {[%clk 0:01:36]} 37. Qg8 {[%clk 0:01:04]} 1-0


[Site "https://www.chess.com"]

[Event "Titled Tuesday Blitz May 10 Early 2022"]
[White "Suleymanli, Aydin"]
[Black "Korchmar, Vasiliy"]
[WhiteFideId "13413937"]
[BlackFideId "24131750"]
[WhiteElo "2481"]
[BlackElo "2370"]
[Result "1-0"]
[Round "06"]
[TimeControl "180+1"]
[Date "2022.05.10"]
[WhiteClock "0:00:10"]
[BlackClock "0:00:03"]

1. e4 {[%clk 0:03:00]}  c5 {[%clk 0:03:00]} 2. Nf3 {[%clk 0:03:01]}  d6 {[%clk 0:02:59]} 3. d4 {[%clk 0:02:59]}  cxd4 {[%clk 0:03:00]} 4. Nxd4 {[%clk 0:02:59]}  Nf6 {[%clk 0:03:01]} 5. Nc3 {[%clk 0:02:59]}  Nc6 {[%clk 0:03:01]} 6. Be2 {[%clk 0:02:51]}  e5 {[%clk 0:02:57]} 7. Nb3 {[%clk 0:02:49]}  h6 {[%clk 0:02:56]} 8. f4 {[%clk 0:02:47]}  Be7 {[%clk 0:02:50]} 9. O-O {[%clk 0:02:40]}  O-O {[%clk 0:02:50]} 10. f5 {[%clk 0:02:40]}  a6 {[%clk 0:02:43]} 11. a4 {[%clk 0:02:36]}  b6 {[%clk 0:02:38]} 12. Bf3 {[%clk 0:02:26]}  Bb7 {[%clk 0:02:35]} 13. Be3 {[%clk 0:02:25]}  Nb4 {[%clk 0:02:32]} 14. a5 {[%clk 0:02:03]}  b5 {[%clk 0:02:30]} 15. Bb6 {[%clk 0:02:02]}  Qc8 {[%clk 0:02:30]} 16. Qd2 {[%clk 0:01:53]}  Qc4 {[%clk 0:02:02]} 17. Be2 {[%clk 0:01:30]}  Qc8 {[%clk 0:01:53]} 18. Rac1 {[%clk 0:01:16]}  Bc6 {[%clk 0:01:51]} 19. Nxb5 {[%clk 0:01:03]}  d5 {[%clk 0:01:43]} 20. Nc7 {[%clk 0:00:51]}  Nxe4 {[%clk 0:01:38]} 21. Qe1 {[%clk 0:00:51]}  Rb8 {[%clk 0:01:36]} 22. c3 {[%clk 0:00:50]}  Ba4 {[%clk 0:00:42]} 23. cxb4 {[%clk 0:00:47]}  Bxb3 {[%clk 0:00:42]} 24. Nxd5 {[%clk 0:00:47]}  Qd7 {[%clk 0:00:36]} 25. Nxe7+ {[%clk 0:00:48]}  Qxe7 {[%clk 0:00:37]} 26. Bxa6 {[%clk 0:00:48]}  Bd5 {[%clk 0:00:31]} 27. b5 {[%clk 0:00:41]}  Qg5 {[%clk 0:00:30]} 28. Qe3 {[%clk 0:00:39]}  Qg4 {[%clk 0:00:26]} 29. h3 {[%clk 0:00:38]}  Qh4 {[%clk 0:00:22]} 30. Bc7 {[%clk 0:00:38]}  Ra8 {[%clk 0:00:18]} 31. Bxe5 {[%clk 0:00:37]}  Rfe8 {[%clk 0:00:17]} 32. Qf4 {[%clk 0:00:37]}  Qe7 {[%clk 0:00:15]} 33. Bd4 {[%clk 0:00:37]}  Qb4 {[%clk 0:00:14]} 34. Rcd1 {[%clk 0:00:29]}  Qxa5 {[%clk 0:00:07]} 35. Bxg7 {[%clk 0:00:29]}  Kxg7 {[%clk 0:00:03]} 36. f6+ {[%clk 0:00:26]}  Kh7 {[%clk 0:00:02]} 37. Rxd5 {[%clk 0:00:25]}  Qb6+ {[%clk 0:00:03]} 38. Kh2 {[%clk 0:00:22]}  Ng5 {[%clk 0:00:03]} 39. Rd7 {[%clk 0:00:19]}  Re4 {[%clk 0:00:01]} 40. Qf5+ {[%clk 0:00:17]}  Kg8 {[%clk 0:00:02]} 41. Rc1 {[%clk 0:00:16]}  Qb8+ {[%clk 0:00:02]} 42. Kh1 {[%clk 0:00:13]}  Qg3 {[%clk 0:00:02]} 43. Rdc7 {[%clk 0:00:09]}  Re1+ {[%clk 0:00:01]} 44. Rxe1 {[%clk 0:00:09]}  Qxe1+ {[%clk 0:00:02]} 45. Kh2 {[%clk 0:00:09]}  Re8 {[%clk 0:00:03]} 46. Rc8 {[%clk 0:00:08]}  Rxc8 {[%clk 0:00:02]} 47. Qxc8+ {[%clk 0:00:09]}  Kh7 {[%clk 0:00:02]} 48. Qf5+ {[%clk 0:00:09]}  Kg8 {[%clk 0:00:03]} 49. b6 {[%clk 0:00:10]}  Qb4 {[%clk 0:00:03]} 50. Qc8+ {[%clk 0:00:10]}  Kh7 {[%clk 0:00:03]} 51. Bd3+ {[%clk 0:00:10]} 1-0


[Site "https://www.chess.com"]

[Event "Titled Tuesday Blitz May 10 Early 2022"]
[White "Todorovic, Bojan"]
[Black "Ljukin, Sergei"]
[WhiteFideId "917087"]
[BlackFideId "14102200"]
[WhiteElo "2266"]
[BlackElo "2312"]
[Result "0-1"]
[Round "06"]
[TimeControl "180+1"]
[Date "2022.05.11"]
[WhiteClock "0:00:09"]
[BlackClock "0:00:14"]

1. d4 {[%clk 0:02:58]}  d5 {[%clk 0:02:57]} 2. c4 {[%clk 0:02:57]}  c6 {[%clk 0:02:57]} 3. Nf3 {[%clk 0:02:56]}  Nf6 {[%clk 0:02:57]} 4. e3 {[%clk 0:02:56]}  e6 {[%clk 0:02:57]} 5. Nc3 {[%clk 0:02:49]}  Nbd7 {[%clk 0:02:56]} 6. Qc2 {[%clk 0:02:47]}  Bd6 {[%clk 0:02:55]} 7. b3 {[%clk 0:02:46]}  O-O {[%clk 0:02:53]} 8. Be2 {[%clk 0:02:45]}  e5 {[%clk 0:02:52]} 9. cxd5 {[%clk 0:02:36]}  Nxd5 {[%clk 0:02:50]} 10. Nxd5 {[%clk 0:02:34]}  cxd5 {[%clk 0:02:50]} 11. dxe5 {[%clk 0:02:34]}  Nxe5 {[%clk 0:02:48]} 12. Nxe5 {[%clk 0:02:32]}  Bxe5 {[%clk 0:02:48]} 13. Bb2 {[%clk 0:02:31]}  Qa5+ {[%clk 0:02:46]} 14. Kf1 {[%clk 0:02:30]}  Bf5 {[%clk 0:02:31]} 15. Qxf5 {[%clk 0:02:21]}  Bxb2 {[%clk 0:02:30]} 16. Rb1 {[%clk 0:02:20]}  Qxa2 {[%clk 0:02:28]} 17. h4 {[%clk 0:02:01]}  g6 {[%clk 0:01:21]} 18. Qd3 {[%clk 0:02:00]}  Rac8 {[%clk 0:01:12]} 19. Rd1 {[%clk 0:01:17]}  Rc3 {[%clk 0:00:55]} 20. Qxd5 {[%clk 0:01:16]}  Qxb3 {[%clk 0:00:54]} 21. Qd2 {[%clk 0:00:59]}  Rc2 {[%clk 0:00:52]} 22. Qd6 {[%clk 0:00:46]}  Bc3 {[%clk 0:00:19]} 23. h5 {[%clk 0:00:38]}  Qb2 {[%clk 0:00:17]} 24. Qd3 {[%clk 0:00:16]}  Rd2 {[%clk 0:00:15]} 25. Rxd2 {[%clk 0:00:15]}  Qxd2 {[%clk 0:00:15]} 26. hxg6 {[%clk 0:00:09]}  Qe1# {[%clk 0:00:14]} 0-1


[Site "https://www.chess.com"]